Cogmind - Beta 13 @@@ ROGUE MODE // 2024.04.05 @ 18:47:33 Player: lilya Result: Self-destructed Performance ------------- Evolutions (1) 500 Regions Visited (2) 400 Robots Destroyed (11) 55 Value Destroyed (349) 349 Prototype IDs (0) 0 Alien Tech Used (0) 0 Bonus (0) 0 TOTAL SCORE: 1304 Bonus ------- None Cogmind --------- Core Integrity 250/400 Matter 52/300 Energy 100/100 System Corruption 0% Temperature Cool (0) Movement Rolling (80) Location -9/Materials Parts ------- > --- POWER (1) -------- (None) > --- PROPULSION (2) --- Wheel > --- UTILITY (4) ------ Small Storage Unit > --- WEAPON (2) ------- Datajack > --- INVENTORY (8) ---- Light Ion Engine Aluminum Leg Flight Unit Flight Unit Peak State ------------ > --- POWER ------------ Light Ion Engine > --- PROPULSION ------- Aluminum Leg Aluminum Leg > --- UTILITY ---------- Small Storage Unit Improved Terrain Scanner Seismic Detector > --- WEAPON ----------- Light Assault Rifle Light Assault Rifle > --- INVENTORY -------- Light Ion Engine Wheel Wheel Flight Unit Flight Unit Grenade Launcher Datajack [Rating: 10] Favorites ----------- Power Light Ion Engine Engine Light Ion Engine Propulsion Aluminum Leg Leg Aluminum Leg Wheel Wheel Flight Unit Flight Unit Utility Small Storage Unit Device Seismic Detector Storage Small Storage Unit Protection Light Armor Plating Weapon Light Assault Rifle Energy Gun Small Laser Ballistic Gun Light Assault Rifle Launcher Grenade Launcher Special Melee Weapon Datajack Build | -11 -10 -9 ------- Run | Yrd Mat Mat Slots Evolved 2 | . . 2 Power . | . . . Propulsion . | . . . Utility 2 | . . 2 Weapon . | . . . Parts Attached 32 | 11 8 13 Power 4 | 1 1 2 Engine 4 | 1 1 2 Core . | . . . Reactor . | . . . Propulsion 12 | 4 5 3 Treads . | . . . Leg 5 | 2 3 . Wheel 4 | 2 . 2 Hover . | . . . Flight 3 | . 2 1 Utility 5 | 3 . 2 Device 3 | 2 . 1 Storage 1 | 1 . . Processor . | . . . Hackware . | . . . Protection 1 | . . 1 Artifact . | . . . Weapon 11 | 3 2 6 Energy Gun 2 | . . 2 Energy Cannon . | . . . Ballistic Gun 6 | 3 2 1 Ballistic Cannon . | . . . Launcher 1 | . . 1 Special Weapon . | . . . Impact Weapon . | . . . Slashing Weapon . | . . . Piercing Weapon . | . . . Special Melee Weapon 2 | . . 2 Unidentified Prototypes . | . . . Parts Lost 12 | . 1 11 Power 3 | . 1 2 Propulsion 2 | . . 2 Utility 3 | . . 3 Weapon 4 | . . 4 Highest Loss Streak 7 | . 1 7 To Critical Strikes . | . . . Average Slot Usage (%) 82 | . 100 68 Engine 11 | . 14 9 Leg 17 | . 27 9 Wheel 3 | . . 6 Device 11 | . 14 8 Storage 12 | . 14 11 Protection 1 | . . 2 Energy Gun 2 | . . 5 Ballistic Gun 20 | . 28 13 Naked Turns . | . . . Heaviest Build 17 | 14 14 17 Greatest Support 20 | 20 20 20 Greatest Overweight (x) 3 | 3 . 1 Average Overweight (x) . | . . . Largest Inventory Capacity 8 | 8 8 8 Average Capacity 7 | 7 8 8 Most Carried 8 | 8 8 7 Average Carried 6 | 4 7 5 Final Capacity 8 | 8 8 8 Final Carried 8 | 8 8 4 Class Distribution -------------------- 100% | Mutant Dominant Class ---------------- Mutant | -10/Materials Mutant | -9/Materials Resources | -11 -10 -9 ----------- Run | Yrd Mat Mat Matter Collected 386 | 239 115 32 Remotely . | . . . Salvage Created 234 | 33 115 86 Parts 22 | 5 6 11 Haulers Intercepted . | . . . Recyclers Shooed . | . . . Parts Field Recycled . | . . . Retrieved Matter . | . . . Parts Self-Destructed . | . . . Prevented . | . . . Kills | -11 -10 -9 ------- Run | Yrd Mat Mat Combat Hostiles Destroyed 8 | . 2 6 Guns 4 | . 2 2 AOE 4 | . . 4 Classes Destroyed 4 | 1 2 1 Tunneler 2 | 2 . . Watcher 1 | . 1 . Grunt 7 | . 2 5 Sentry 1 | . . 1 Best Kill Streak 5 | 1 2 5 Combat Bots Only 5 | . 1 5 Max Kills in Single Turn 1 | 1 1 1 Gunslinging . | . . . Exploded 1 | . . 1 Melee . | . . . Uniques/NPCs Destroyed . | . . . Combat | -11 -10 -9 -------- Run | Yrd Mat Mat Hostile Shots Fired 106 | . 15 91 Missed 28 | . 3 25 Damage Taken 1052 | . 186 866 Core 186 | . 36 150 Absorbed by Shields . | . . . Core Remaining (%) 92 | 100 85 . Volleys Fired 50 | 9 13 28 Largest 2 | 2 2 2 Hottest 60 | 40 40 60 Shots Fired 92 | 18 26 48 Gun 85 | 18 26 41 Cannon . | . . . Launcher 7 | . . 7 Special . | . . . Kinetic 73 | 18 26 29 Thermal 12 | . . 12 Explosive 7 | . . 7 Electromagnetic . | . . . Robot Hit Streak 9 | 4 6 9 Robot Miss Streak 5 | 3 1 5 Penetration Max . | . . . Secondary Targets . | . . . Shots Hit Robots 65 | 9 21 35 Core Hits 28 | 4 7 17 Critical Kills . | . . . Critical Parts Destroyed 1 | . . 1 Critical Strikes 1 | . . 1 Destroy 1 | . . 1 Melee Attacks 9 | . . 9 Impact . | . . . Slashing . | . . . Piercing . | . . . Sneak Attacks 5 | . . 5 Combat Hostiles . | . . . Follow-up Attacks . | . . . Damage Inflicted 1053 | 88 212 753 Guns 509 | 88 212 209 Cannons . | . . . Explosions 527 | . . 527 Melee . | . . . Ramming 17 | . . 17 Kinetic 408 | 88 212 108 Thermal 101 | . . 101 Explosive 527 | . . 527 Electromagnetic . | . . . Impact . | . . . Slashing . | . . . Piercing . | . . . Highest Corruption . | . . . Average Corruption . | . . . Corruption Purged . | . . . Corruption Blocked . | . . . Overload Shots . | . . . Overflow Damage . | . . . Projectiles . | . . . Explosions . | . . . Melee . | . . . Knockbacks . | . . . Impact . | . . . Kinetic . | . . . Secondary . | . . . Self-Inflicted Damage 37 | . . 37 Shots 1 | . . 1 Rammed 1 | . . 1 Targets Rammed 2 | . . 2 Kicked 1 | . . 1 Crushed . | . . . Highest Temperature 76 | . 18 76 Average Temperature 18 | . 10 20 Received Heat Transfer 540 | . 102 438 Siege Activations . | . . . Robots Corrupted . | . . . Combat Hostiles . | . . . Parts Fried . | . . . Impact Corruptions . | . . . Robots Melted . | . . . Combat Hostiles . | . . . Parts Melted . | . . . Heat Transferred 225 | . . 225 Parts Sabotaged . | . . . Parts Stolen . | . . . Parts Stripped . | . . . Power Chain Reactions . | . . . Alert | -11 -10 -9 ------- Run | Yrd Mat Mat Peak Influence 271 | 10 72 271 Initial 29 | . 6 29 Average 87 | 3 53 135 Maximum Alert Level 1 | . . 1 Low Security (%) 84 | 100 100 68 Level 1 15 | . . 31 Level 2 . | . . . Level 3 . | . . . Level 4 . | . . . Level 5 . | . . . High Security . | . . . Max Security . | . . . Squads Dispatched 2 | . . 2 Investigation 2 | . . 2 Extermination . | . . . Reinforcement . | . . . Assault . | . . . Garrison . | . . . Intercept . | . . . Searches Triggered . | . . . Construction Impeded . | . . . Haulers Reinforced . | . . . Active Scanning Responses . | . . . Cargo Convoy Interrupts . | . . . Stealth | -11 -10 -9 --------- Run | Yrd Mat Mat Distress Signals 2 | . 1 1 Communications Jammed . | . . . Distress Signals . | . . . Times Spotted 22 | . 6 16 Peak Tracking Total 6 | . 3 6 Tactical Retreats 2 | . . 2 Traps | -11 -10 -9 ------- Run | Yrd Mat Mat Traps Triggered 2 | . . 2 Indirectly . | . . . Trap Hack Attempts . | . . . Triggered . | . . . Disarmed . | . . . Reprogrammed . | . . . Reused . | . . . Traps Extracted . | . . . Installed . | . . . Triggered . | . . . Machines | -11 -10 -9 ---------- Run | Yrd Mat Mat Machines Disabled 1 | . . 1 Max in Single Turn 1 | . . 1 Machines Repaired . | . . . Machines Dismantled . | . . . Machines Sabotaged . | . . . Overloaded Fab Kills . | . . . Hacking | -11 -10 -9 --------- Run | Yrd Mat Mat Machines Accessed 2 | . 1 1 Terminals 2 | . 1 1 Fabricators . | . . . Repair Stations . | . . . Recycling Units . | . . . Scanalyzers . | . . . Garrison Access . | . . . Total Hacks 6 | . 3 3 Successful 5 | . 3 2 Failed 1 | . . 1 Catastrophic . | . . . Database Lockouts . | . . . Manual . | . . . Terminals 6 | . 3 3 Fabricators . | . . . Repair Stations . | . . . Recycling Units . | . . . Scanalyzers . | . . . Garrison Access . | . . . Terminal Hacks 5 | . 3 2 Record 2 | . 2 . Alert Level 1 | . 1 . Surveillance Status 1 | . . 1 Recall Investigation 1 | . . 1 Fabricator Hacks . | . . . Repair Station Hacks . | . . . Recycling Unit Hacks . | . . . Scanalyzer . | . . . Garrison Access Hacks . | . . . Unauthorized Hacks . | . . . Terminals . | . . . Fabricators . | . . . Repair Stations . | . . . Recycling Units . | . . . Scanalyzers . | . . . Garrison Access . | . . . Data Cores Recovered . | . . . Used . | . . . Hacking Detections 1 | . . 1 Full Trace Events . | . . . Feedback Events . | . . . Feedback Blocked . | . . . Robot Schematics Acquired . | . . . Robots Built . | . . . Authchips . | . . . Time . | . . . Total Robot Build Rating . | . . . Part Schematics Acquired . | . . . Parts Built . | . . . Authchips . | . . . Time . | . . . Total Part Build Rating . | . . . Parts Repaired . | . . . Time . | . . . Parts Recycled . | . . . Recycled Matter . | . . . Retrieved Matter . | . . . Retrieved Components . | . . . Parts Scanalyzed . | . . . Part Schematics Acquired . | . . . Parts Damaged . | . . . Bothacking | -11 -10 -9 ------------ Run | Yrd Mat Mat Used RIF Installer . | . . . Robots Hacked 1 | . . 1 Non-combat 1 | . . 1 Combat . | . . . Robot Hacks Applied 1 | . . 1 parse_system 1 | . . 1 Relay Couplers Released . | . . . Fabnet Peak Effective % . | . . . Robots Rewired . | . . . Allies Hacked . | . . . Hacks Repelled . | . . . Allies | -11 -10 -9 -------- Run | Yrd Mat Mat Total Allies . | . . . Largest Group . | . . . Highest-Rated Group . | . . . Highest-Rated Ally . | . . . Total Orders . | . . . Ally Attacks . | . . . Total Damage . | . . . Kills . | . . . Allies Corrupted . | . . . Allies Melted . | . . . Intel | -11 -10 -9 ------- Run | Yrd Mat Mat Robot Analysis Total . | . . . Derelict Logs Recovered . | . . . Drone Launches . | . . . Drone Recoveries . | . . . Exploration | -11 -10 -9 ------------- Run | Yrd Mat Mat Turns Passed 838 | 97 329 412 Spaces Moved 506 | 52 185 269 Core 8 | 8 . . Treads . | . . . Legs 281 | 3 185 93 Wheels 217 | 41 . 176 Hover . | . . . Flight . | . . . Fastest Speed 50 | 50 120 80 Average Speed 106 | 91 120 99 Slowest Speed 200 | 200 120 120 Overloaded Moves . | . . . Propulsion Burnouts . | . . . Robots Hopped . | . . . Cave-ins Triggered . | . . . Exploration Rate (%) 20 | 5 36 20 Regions Visited 2 Branch Regions . Pre-discovered Areas . | . . . Known Exits Taken . | . . . Unknown Exits Taken 2 | 1 1 . Scrap Searched . | . . . Spaces Dug . | . . . Terrain Destroyed 46 | . . 46 Melee . | . . . Projectile . | . . . AOE 46 | . . 46 Terrain Rammed . | . . . Walls Destroyed . | . . . Machines Disabled . | . . . Actions | -11 -10 -9 --------- Run | Yrd Mat Mat Total 710 | 81 267 362 Wait 92 | . 54 38 Move 504 | 51 184 269 Hop . | . . . Pick Up 17 | 10 4 3 Fast Attach 6 | 5 1 . Attach 10 | 2 1 7 Detach . | . . . Swap 16 | 4 6 6 Drop 4 | . 4 . Fire 50 | 9 13 28 Melee 9 | . . 9 Ram 1 | . . 1 Kick 1 | . . 1 Crush . | . . . Escape Stasis . | . . . Rewire . | . . . Trap . | . . . Miscellaneous . | . . . Route ------- -11/Scrapyard -10/Materials (discovered 2 exits: *Mat / [*Min]) -9/Materials History --------- Turn | Location | Event 26 | -11/Scrapyard | Discovered new exit (range 14) 98 | -11/Scrapyard | Entered Materials 133 | -10/Materials | Discovered new exit (range 14) 309 | -10/Materials | Build established: Mutant 354 | -10/Materials | Discovered new exit (range 3) 427 | -10/Materials | Entered another Materials area 427 | -9/Materials | Evolved 2 slots: Utility x2 655 | -9/Materials | Lost 7 parts (1p2n2u2w) 839 | -9/Materials | Self-destructed Last Messages --------------- Reading system data... G-34 Mercenary suffers critical hit (Destroy). Destroyed Sml. Laser. Lgt. Armor Plating destroyed. G-34 Mercenary destroyed. Imp. Ion Engine destroyed. Critical hit (Burn: +37). Lgt. Assault Rifle destroyed. Sneak attack on A-02 Transporter. Jacked A-02 Transporter... >>find_dsf No accessible DSF found in memory. Sneak attack on T-07 Excavator. Jacked T-07 Excavator... Sneak attack on T-07 Excavator. Jacked T-07 Excavator... W-16 Scout sends out distress signal. Jacked G-34 Mercenary... Sml. Laser destroyed. Jacked G-34 Mercenary... Map ----- +----------------------------------------------------+ | | | | | | | | | | | | | | | ?????#?????????????????????????????????????????### | | ??????????????????#?????#??????????########????# | | ??????????????????????????????????# #????# " | | ?#?????????#??######?????????###### #????# " | | ????????????# #?#????# + #????# | | ????????????#"S #??????# ################ | | ?????????#??#""" """ #??????# | | ????????????# "" """ #??????# ################ | | ????????????# """ #?#????# #??? #?? | | ????????????# #??????# #### #?? | | ????????????# #????### + #?? | | ????#???????# #??????# #### #?? | | #################+############ #??? #?? | | #???? #?? | | ######### #???? #?? | | #?#????## #?#??? #?? | | ##################### #???#####+########+#####?? | | ???????????#????????# ##### """ #????????? | | ??????????#??????##?# g @ t/ "T" #????????? | | ??#???????????##??#?# ##### t """ +????????? | | ????????????????????# #???# """ #????????? | | ?????????#??????????# #???# """ #????????? | | ????????????#????#??# #?#?# #????????? | | ??????????#??#???#??# #???# #????????? | | ???????????#???#????# #??##############????????? | | ?????#????????#?????# #????????#???????????????? | | ?????????????########+# #??#?????????????????????? | | ?????????????# # #????????????????????????? | | ?????????????# """ # #?????#??????????????????? | | ?????????????# """ # ###?#????#??#????????????? | | ?????????????# """ # ###??#????????? ???????? | | ???????????#?# + +????????????????????? | | ?????????????# """ # ###??? ?? ?????????????? | | ???????????#?# """ # #??????????????????????? | | ??????????? ?# """ # #???"??????????????????? | | ????????#????# # ##?????????????????????? | | ?????#?##? ??######/### #???????????#??????????? | | ????????????## # #?# #????"?????????????????? | | ?????????? ??# ### ##??"" ???????????????? | | ?????????????# # ## ????????????????? | | ?????? ????? # ####+#??????????????? | | ???????????"?#! ! ?????????????? | | ??????????"??# % ?????????????? | +----------------------------------------------------+ Best States ------------- Heat Dissipation 28 Energy Generation 12 Energy Capacity 265 Matter Stores 249 Matter Capacity 300 Sight Range 16 Terrain Scan Range 16 Terrain Scan Density 10 Armor Coverage 150 Evasion (%) 55 Item Schematics ----------------- None Robot Schematics ------------------ None Fabricated ------------ Nothing Alien Tech Used ----------------- None Achievements -------------- GoHome() Challenges ------------ None Game ------ Seed MomentumAlphaRigger Manual? 0 Play Time 00:20:10 Cumulative 8.3 hours Start 2024.04.05 @ 17:09:26 End 2024.04.05 @ 18:47:33 Sessions 2 Manual Loads 0 Difficulty Rogue Special Mode None Game No. 11 Rogue 10 Adventurer 1 Explorer 0 Win Type - Total 0 Types 0/0/0/0/0/0/0/0/0 Lore% 14 Gallery% 8 Achievement% 7 Wizard Run 0 Options --------- Layout 1 ASCII 0 Keyboard 0 Movement Numpad Keybinds 0 Fullscreen 2 Font 24/Smallcaps Map View 50x35 Zoom Use 0% Tactical HUD 0 Map Filters NONE Filters NONE Steam 1 RUN: 9d1f18e0-e365-4774-adf5-2b78ef61e7a9